fUST/lending_fUST_20240203
["ID","MTS","AMOUNT","RATE_DAILY","PERIOD"]
[313206300,1706947842154,-500.0,0.00027945,2]
[313206301,1706947842163,-500.0,0.00027945,2]
[313206302,1706947842171,-500.0,0.00027945,2]
[313206303,1706947842180,-500.0,0.00027945,2]
[313206304,1706947842189,-500.0,0.00027945,2]
[313206305,1706947842198,-500.0,0.00027945,2]
[313206306,1706947842207,-500.0,0.00027945,2]
[313206307,1706947842216,-500.0,0.00027945,2]
[313206308,1706947842225,-500.0,0.00027945,2]
[313206309,1706947842234,-500.0,0.00027945,2]
[313206310,1706947842243,-500.0,0.00027945,2]
[313206311,1706947842252,-500.0,0.00027945,2]
[313206312,1706947842261,-1316.2,0.00027945,2]
[313206313,1706947842270,-500.0,0.00027945,2]
[313206314,1706947842279,-500.0,0.00027945,2]
[313206315,1706947842288,-500.0,0.00027945,2]
[313206316,1706947842297,-617.54,0.00027945,2]
[313206317,1706947842307,-1884.06,0.00027945,2]
[313206318,1706947842316,-500.0,0.00027945,2]
[313206319,1706947842324,-500.0,0.00027945,2]
[313206320,1706947842333,-500.0,0.00027945,2]
[313206321,1706947842342,-500.0,0.00027945,2]
[313206322,1706947842351,-500.0,0.00027945,2]
[313206323,1706947842360,-500.0,0.00027945,2]
[313206324,1706947842369,-637.88884278,0.00027945,2]
[313206325,1706947842378,-500.0,0.00027945,2]
[313206326,1706947842387,-500.0,0.00027945,2]
[313206327,1706947842397,-500.0,0.00027945,2]
[313206328,1706947842406,-500.0,0.00027945,2]
[313206329,1706947842414,-1277.61,0.00027945,2]
[313206330,1706947842423,-500.0,0.00027945,2]
[313206331,1706947842434,-500.0,0.00027945,2]
[313206332,1706947842443,-500.0,0.00027945,2]
[313206333,1706947842452,-500.0,0.00027945,2]
[313206334,1706947842461,-500.0,0.00027945,2]
[313206335,1706947842471,-696.2,0.00027945,2]
[313206336,1706947842480,-500.0,0.00027945,2]
[313206337,1706947842490,-500.0,0.00027945,2]
[313206338,1706947842499,-500.0,0.00027945,2]
[313206339,1706947842508,-500.0,0.00027945,2]
[313206340,1706947842520,-764.96,0.00027945,2]
[313206341,1706947842528,-500.0,0.00027945,2]
[313206342,1706947842538,-3309.01,0.00027945,2]
[313206343,1706947842547,-500.0,0.00027945,2]
[313206344,1706947842557,-500.0,0.00027945,2]
[313206345,1706947842566,-500.0,0.00027945,2]
[313206346,1706947842575,-500.0,0.00027945,2]
[313206347,1706947842585,-500.0,0.00027945,2]
[313206348,1706947842594,-26672.88718647,0.00027989,2]
[313206349,1706947842604,-2293.59373872,0.00027998,2]
[313206350,1706947842614,-591.99312524,0.00027998,2]
[313206351,1706947842623,-848.00898149,0.00027998,2]
[313206353,1706947842631,-332.68324877,0.00027998,2]
[313206354,1706947842640,-331.8109321,0.00027998,2]
[313206356,1706947842650,-156.8872007,0.00027998,2]
[313206357,1706947842661,-155.72853088,0.00027998,2]
[313206358,1706947842670,-155.79983419,0.00027998,2]
[313206359,1706947842680,-1249.89896506,0.00027998,2]
[313206360,1706947842689,-175.056674,0.00027998,2]
[313206361,1706947842698,-156.25070942,0.00027998,2]
[313206362,1706947842707,-230.88142086,0.00027998,2]
[313206363,1706947842716,-155.69605993,0.00027998,2]
[313206364,1706947842726,-6799.23859091,0.00027998,2]
[313206365,1706947842735,-1000.0,0.00027999,3]
[313206366,1706947842744,-1023.88339212,0.00027999,3]
[313206368,1706947842753,-500.0,0.00027999,2]
[313206369,1706947842762,-500.0,0.00027999,2]
[313206370,1706947842771,-500.0,0.00027999,2]
[313206371,1706947842781,-500.0,0.00027999,2]
[313206372,1706947842790,-177.05054153,0.00027999,2]
[313206373,1706947842799,-231.14549736,0.00027999,2]
[313206374,1706947842809,-500.0,0.00027999,2]
[313206375,1706947842818,-500.0,0.00027999,2]
[313206376,1706947842827,-267.93621117,0.00027999,2]
[313206377,1706947842837,-500.0,0.00027999,2]
[313206378,1706947842846,-500.0,0.00027999,2]
[313206379,1706947842855,-500.0,0.00027999,2]
[313206380,1706947842864,-500.0,0.00027999,2]
[313206381,1706947842874,-464.26228076,0.00027999,2]
[313206382,1706947842883,-275.77800303,0.00027999,2]
[313206383,1706947842892,-500.0,0.00027999,2]
[313206384,1706947842901,-500.0,0.00027999,2]
[313206385,1706947842911,-500.0,0.00027999,2]
[313206386,1706947842920,-500.0,0.00027999,2]
[313206387,1706947842929,-160.97379388,0.00027999,2]
[313206388,1706947842938,-500.0,0.00027999,2]
[313206389,1706947842948,-500.0,0.00027999,2]
[313206390,1706947842957,-441.0192481,0.00027999,2]
[313206391,1706947842967,-500.0,0.00027999,2]
[313206392,1706947842976,-259.0506465,0.00028,3]
[313206393,1706947842985,-200000.0,0.00028,2]
[313206394,1706947842994,-60607.30626474,0.00028,2]
[313206395,1706947843053,-1585.69628601,0.00020272,2]
[313206396,1706947843063,-500.0,0.00027397,2]
[313206397,1706947843072,-500.0,0.00027671,2]
[313206398,1706947843081,-500.0,0.00027945,2]
[313206399,1706947843090,-30144.35372563,0.00028,2]
[313206400,1706947843101,-1657.95123696,0.00028,2]
[313206436,1706947844364,-6546.75,0.0002789,3]
[313206437,1706947844373,-20335.96815192,0.00028,2]
[313206628,1706947849287,-404.91796637,0.00027397,2]
[313206981,1706949038457,-155.02325349,0.00022481,2]
[313206983,1706949038467,-155.02325349,0.00022482,2]
[313206985,1706949038477,-169.684484,0.00022483,2]
[313206987,1706949038485,-5583.40876403,0.00023105,2]
[313206991,1706949038512,-4376.57184463,0.00023105,2]
[313206992,1706949038521,-155.02325349,0.00023106,2]
[313206994,1706949038530,-717.4770118,0.00023107,2]
[313206996,1706949038540,-24900.0,0.00023117,2]
[313206998,1706949038548,-166.666666,0.00023403,2]
[313207000,1706949038557,-230.576275,0.00023501,2]
[313207002,1706949038566,-169.684485,0.00023669,2]
[313207004,1706949038575,-155.02325349,0.00023773,4]
[313207007,1706949038584,-1227.06424104,0.0002469,2]
[313207010,1706949038593,-2723.72098578,0.0002479,2]
[313207013,1706949038602,-612.8372218,0.0002479,2]
[313207014,1706949038611,-2163.24176394,0.0002479,2]
[313207016,1706949038620,-200.0,0.00025479,2]
[313207018,1706949038629,-854.24225364,0.000259,2]
[313207020,1706949038638,-200.0,0.00026025,7]
[313207022,1706949038647,-8668.59935887,0.00026027,4]
[313207024,1706949038656,-8088.82,0.00026394,3]
[313207026,1706949038665,-5668.54,0.00026404,3]
[313207028,1706949038674,-9706.59,0.00026404,3]
[313207030,1706949038682,-4035.82532671,0.00026414,2]
[313207032,1706949038691,-13283.05330217,0.00026414,2]
[313207034,1706949038700,-4345.80334459,0.00026415,2]
[313207036,1706949038709,-26672.88718647,0.00026416,2]
[313207038,1706949038718,-166.666666,0.00026593,2]
[313207040,1706949038727,-153.0,0.00026849,2]
[313207042,1706949038736,-199.6991802,0.00026878,2]
[313207044,1706949038745,-153.0,0.00026878,2]
[313207046,1706949038754,-151.0,0.00027187,2]
[313207048,1706949038763,-153.0,0.00027278,2]
[313207050,1706949038772,-1227.06424104,0.0002735,3]
[313207052,1706949038781,-200.0,0.00027395,2]
[313207054,1706949038791,-155.35403325,0.00027396,2]
[313207056,1706949038800,-311.37143275,0.00027396,2]
[313207058,1706949038809,-500.0,0.00027396,2]
[313207060,1706949038818,-500.0,0.00027396,2]
[313207062,1706949038827,-218.34543127,0.00027396,2]
[313207064,1706949038836,-374.32229926,0.00027396,2]
[313207066,1706949038845,-500.0,0.00027396,2]
[313207068,1706949038854,-500.0,0.00027396,2]
[313207070,1706949038863,-500.0,0.00027396,2]
[313207072,1706949038873,-500.0,0.00027396,2]
[313207074,1706949038884,-500.0,0.00027396,2]
[313207075,1706949038895,-500.0,0.00027396,2]
[313207077,1706949038905,-500.0,0.00027396,2]
[313207079,1706949038914,-500.0,0.00027396,2]
[313207081,1706949038923,-500.0,0.00027396,2]
[313207084,1706949038933,-500.0,0.00027396,2]
[313207086,1706949038942,-500.0,0.00027396,2]
[313207088,1706949038952,-500.0,0.00027396,2]
[313207089,1706949038961,-550.0,0.00027396,2]
[313207092,1706949038972,-500.0,0.00027396,2]
[313207094,1706949038981,-500.0,0.00027396,2]
[313207096,1706949038990,-500.0,0.00027396,2]
[313207097,1706949038999,-500.0,0.00027396,2]
[313207099,1706949039008,-500.0,0.00027396,2]
[313207101,1706949039018,-500.0,0.00027396,2]
[313207103,1706949039027,-500.0,0.00027396,2]
[313207105,1706949039036,-500.0,0.00027396,2]
[313207107,1706949039046,-500.0,0.00027396,2]
[313207109,1706949039056,-500.0,0.00027396,2]
[313207111,1706949039065,-500.0,0.00027396,2]
[313207113,1706949039074,-500.0,0.00027396,2]
[313207116,1706949039094,-500.0,0.00027396,2]
[313207118,1706949039104,-500.0,0.00027396,2]
[313207120,1706949039114,-515.39070937,0.00027396,2]
[313207122,1706949039124,-500.0,0.00027396,2]
[313207123,1706949039134,-500.0,0.00027396,2]
[313207124,1706949039143,-500.0,0.00027396,2]
[313207125,1706949039153,-239.07550665,0.00027396,2]
[313207126,1706949039162,-500.0,0.00027396,2]
[313207127,1706949039172,-500.0,0.00027396,2]
[313207128,1706949039181,-500.0,0.00027396,2]
[313207129,1706949039191,-500.0,0.00027396,2]
[313207130,1706949039200,-500.0,0.00027396,2]
[313207131,1706949039210,-500.0,0.00027396,2]
[313207132,1706949039219,-500.0,0.00027396,2]
[313207133,1706949039228,-500.0,0.00027396,2]
[313207134,1706949039238,-500.0,0.00027396,2]
[313207135,1706949039247,-500.0,0.00027396,2]
[313207137,1706949039256,-500.0,0.00027396,2]
[313207139,1706949039265,-765.40311766,0.00027397,2]
[313207141,1706949039275,-500.0,0.00027397,2]
[313207143,1706949039284,-430.51695446,0.00027397,2]
[313207145,1706949039294,-500.0,0.00027397,2]
[313207147,1706949039303,-500.0,0.00027397,2]
[313207149,1706949039313,-500.0,0.00027397,2]
[313207151,1706949039322,-508.84074128,0.00027397,2]
[313207154,1706949039332,-500.0,0.00027397,2]
[313207156,1706949039342,-500.0,0.00027397,2]
[313207157,1706949039352,-500.0,0.00027397,2]
[313207159,1706949039361,-500.0,0.00027397,2]
[313207161,1706949039371,-500.0,0.00027397,2]
[313207163,1706949039380,-500.0,0.00027397,2]
[313207166,1706949039390,-513.93419891,0.00027397,2]
[313207168,1706949039399,-502.0299749,0.00027397,2]
[313207169,1706949039408,-500.0,0.00027397,2]
[313207171,1706949039417,-500.0,0.00027397,2]
[313207174,1706949039426,-374.82154736,0.00027397,2]
[313207176,1706949039435,-491.06629373,0.00027397,2]
[313207178,1706949039444,-500.0,0.00027397,2]
[313207180,1706949039453,-503.8622474,0.00027397,2]
[313207182,1706949039463,-1000.0,0.00027397,2]
[313207184,1706949039472,-645.36468903,0.00027397,2]
[313207186,1706949039481,-500.0,0.00027397,2]
[313207188,1706949039490,-500.0,0.00027397,2]
[313207190,1706949039499,-500.0,0.00027397,2]
[313207192,1706949039508,-506.70682152,0.00027397,2]
[313207193,1706949039517,-504.25981323,0.00027397,2]
[313207195,1706949039526,-500.0,0.00027397,2]
[313207196,1706949039535,-500.0,0.00027397,2]
[313207198,1706949039544,-302.26519309,0.00027397,2]
[313207200,1706949039553,-503.35417262,0.00027397,2]
[313207202,1706949039563,-472.85051951,0.00027397,2]
[313207204,1706949039572,-504.48564056,0.00027397,2]
[313207206,1706949039581,-502.82897254,0.00027397,2]
[313207208,1706949039591,-500.0,0.00027397,2]
[313207210,1706949039600,-503.421499,0.00027397,2]
[313207212,1706949039609,-500.0,0.00027397,2]
[313207214,1706949039618,-578.67227873,0.00027397,2]
[313207216,1706949039627,-500.0,0.00027397,2]
[313207218,1706949039636,-500.0,0.00027397,2]
[313207220,1706949039645,-500.0,0.00027397,2]
[313207222,1706949039654,-529.75092706,0.00027397,2]
[313207223,1706949039664,-500.0,0.00027397,2]
[313207226,1706949039673,-500.0,0.00027397,2]
[313207227,1706949039683,-500.0,0.00027397,2]
[313207229,1706949039692,-500.0,0.00027397,2]
[313207232,1706949039701,-502.51300399,0.00027397,2]
[313207234,1706949039710,-353.32596457,0.00027397,2]
[313207236,1706949039719,-265.23428193,0.00027397,2]
[313207238,1706949039729,-504.08404034,0.00027397,2]
[313207240,1706949039738,-500.0,0.00027397,2]
[313207242,1706949039747,-500.0,0.00027397,2]
[313207244,1706949039756,-503.37405009,0.00027397,2]
[313207246,1706949039766,-500.0,0.00027397,2]
[313207248,1706949039775,-569.56675569,0.00027397,2]
[313207250,1706949039784,-500.0,0.00027397,2]
[313207252,1706949039794,-500.0,0.00027397,2]
[313207254,1706949039803,-505.95287227,0.00027397,2]
[313207256,1706949039812,-503.49271453,0.00027397,2]
[313207258,1706949039821,-501.95979755,0.00027397,2]
[313207260,1706949039830,-240.43038265,0.00027397,2]
[313207262,1706949039839,-500.0,0.00027397,2]
[313207264,1706949039848,-500.0,0.00027397,2]
[313207266,1706949039858,-501.56367019,0.00027397,2]
[313207268,1706949039867,-500.0,0.00027397,2]
[313207270,1706949039877,-530.44382497,0.00027397,2]
[313207272,1706949039888,-258.58735297,0.00027397,2]
[313207274,1706949039897,-509.16728415,0.00027397,2]
[313207276,1706949039906,-500.0,0.00027397,2]
[313207278,1706949039916,-502.64182765,0.00027397,2]
[313207280,1706949039924,-500.0,0.00027397,2]
[313207281,1706949039934,-500.0,0.00027397,2]
[313207283,1706949039943,-194.57581154,0.00027397,2]
[313207285,1706949039953,-504.4914612,0.00027397,2]
[313207288,1706949039963,-500.0,0.00027397,2]
[313207289,1706949039972,-500.0,0.00027397,2]
[313207291,1706949039982,-505.91505518,0.00027397,2]
[313207293,1706949039991,-500.0,0.00027397,2]
[313207295,1706949040001,-607.72264108,0.00027397,2]
[313207297,1706949040010,-500.0,0.00027397,2]
[313207299,1706949040020,-500.0,0.00027397,2]
[313207301,1706949040029,-500.0,0.00027397,2]
[313207303,1706949040039,-500.0,0.00027397,2]
[313207306,1706949040049,-500.0,0.00027397,2]
[313207308,1706949040059,-500.0,0.00027397,2]
[313207310,1706949040069,-503.67279272,0.00027397,2]
[313207312,1706949040078,-500.0,0.00027397,2]
[313207313,1706949040088,-500.0,0.00027397,2]
[313207316,1706949040097,-500.0,0.00027397,2]
[313207318,1706949040106,-500.0,0.00027397,2]
[313207320,1706949040116,-474.96707827,0.00027397,2]
[313207322,1706949040125,-500.0,0.00027397,2]
[313207324,1706949040135,-500.0,0.00027397,2]
[313207325,1706949040146,-500.0,0.00027397,2]
[313207327,1706949040156,-500.0,0.00027397,2]
[313207329,1706949040165,-617.54,0.00027397,2]
[313207331,1706949040174,-503.63711727,0.00027397,2]
[313207333,1706949040183,-624.15640998,0.00027397,2]
[313207335,1706949040192,-500.0,0.00027397,2]
[313207337,1706949040201,-500.0,0.00027397,2]
[313207339,1706949040210,-500.0,0.00027397,2]
[313207341,1706949040219,-500.0,0.00027397,2]
[313207343,1706949040228,-400.0,0.00027397,2]
[313207345,1706949040238,-500.0,0.00027397,2]
[313207347,1706949040247,-516.25072468,0.00027397,2]
[313207349,1706949040256,-454.59894632,0.00027397,2]
[313207351,1706949040265,-500.0,0.00027397,2]
[313207353,1706949040274,-500.0,0.00027397,2]
[313207355,1706949040284,-500.0,0.00027397,2]
[313207357,1706949040296,-503.75418424,0.00027397,2]
[313207359,1706949040304,-500.0,0.00027397,2]
[313207360,1706949040314,-1386.37,0.00027397,2]
[313207362,1706949040323,-190.19588043,0.00027397,2]
[313207364,1706949040333,-1319.28,0.00027397,2]
[313207366,1706949040342,-500.0,0.00027397,2]
[313207368,1706949040351,-500.0,0.00027397,2]
[313207371,1706949040360,-500.0,0.00027397,2]
[313207373,1706949040369,-500.0,0.00027397,2]
[313207375,1706949040378,-176.33972775,0.00027397,2]
[313207377,1706949040387,-500.0,0.00027397,2]
[313207379,1706949040396,-319.28701932,0.00027397,2]
[313207381,1706949040406,-1904.9,0.00027397,2]
[313207383,1706949040415,-500.0,0.00027397,2]
[313207385,1706949040425,-502.61709919,0.00027397,2]
[313207387,1706949040434,-500.0,0.00027397,2]
[313207389,1706949040444,-500.0,0.00027397,2]
[313207391,1706949040453,-504.4767073,0.00027397,2]
[313207393,1706949040463,-500.0,0.00027397,2]
[313207394,1706949040473,-500.0,0.00027397,2]
[313207396,1706949040482,-500.0,0.00027397,2]
[313207398,1706949040492,-500.0,0.00027397,2]
[313207400,1706949040501,-500.0,0.00027397,2]
[313207402,1706949040510,-500.0,0.00027397,2]
[313207404,1706949040519,-500.0,0.00027397,2]
[313207406,1706949040530,-785.79,0.00027397,2]
[313207408,1706949040539,-501.71,0.00027397,2]
[313207410,1706949040550,-758.7,0.00027397,2]
[313207412,1706949040559,-500.0,0.00027397,2]
[313207414,1706949040570,-3457.36,0.00027397,2]
[313207416,1706949040580,-500.0,0.00027397,2]
[313207418,1706949040589,-150.247468,0.00027397,2]
[313207419,1706949040598,-180.7763201,0.00027669,2]
[313207420,1706949040607,-679.86163762,0.00027669,2]
[313207422,1706949040617,-1271.81370551,0.0002767,2]
[313207424,1706949040626,-500.0,0.00027671,2]
[313207426,1706949040635,-500.0,0.00027671,2]
[313207428,1706949040643,-504.62288054,0.00027671,2]
[313207430,1706949040653,-500.0,0.00027671,2]
[313207432,1706949040666,-500.0,0.00027671,2]
[313207434,1706949040675,-416.71414332,0.00027671,2]
[313207436,1706949040684,-505.88117629,0.00027671,2]
[313207438,1706949040693,-503.81745858,0.00027671,2]
[313207440,1706949040703,-500.0,0.00027671,2]
[313207441,1706949040712,-525.34101276,0.00027671,2]
[313207442,1706949040721,-500.0,0.00027671,2]
[313207443,1706949040730,-500.0,0.00027671,2]
[313207444,1706949040739,-500.0,0.00027671,2]
[313207456,1706949040845,-500.0,0.00027671,2]
[313207458,1706949040855,-500.0,0.00027671,2]
[313207460,1706949040864,-504.73072043,0.00027671,2]
[313207461,1706949040873,-500.0,0.00027671,2]
[313207463,1706949040882,-500.0,0.00027671,2]
[313207464,1706949040895,-320.28093465,0.00027671,2]
[313207465,1706949040904,-500.0,0.00027671,2]
[313207466,1706949040913,-505.61619828,0.00027671,2]
[313207467,1706949040922,-505.47567208,0.00027671,2]
[313207468,1706949040932,-500.0,0.00027671,2]
[313207469,1706949040941,-502.36653154,0.00027671,2]
[313207470,1706949040950,-500.0,0.00027671,2]
[313207471,1706949040959,-500.0,0.00027671,2]
[313207472,1706949040969,-151.0,0.00027671,2]
[313207473,1706949040979,-151.0,0.00027671,2]
[313207474,1706949040988,-500.0,0.00027671,2]
[313207475,1706949040997,-500.0,0.00027671,2]
[313207477,1706949041006,-151.0,0.00027671,2]
[313207479,1706949041015,-500.0,0.00027671,2]
[313207480,1706949041024,-500.0,0.00027671,2]
[313207482,1706949041034,-500.0,0.00027671,2]
[313207484,1706949041043,-372.95353061,0.00027671,2]
[313207486,1706949041053,-500.0,0.00027671,2]
[313207488,1706949041062,-500.0,0.00027671,2]
[313207489,1706949041071,-500.0,0.00027671,2]
[313207490,1706949041081,-500.0,0.00027671,2]
[313207491,1706949041091,-500.0,0.00027671,2]
[313207492,1706949041100,-500.0,0.00027671,2]
[313207493,1706949041110,-500.0,0.00027671,2]
[313207494,1706949041120,-500.0,0.00027671,2]
[313207495,1706949041130,-500.0,0.00027671,2]
[313207496,1706949041139,-500.0,0.00027671,2]
[313207497,1706949041148,-500.0,0.00027671,2]
[313207498,1706949041157,-617.54,0.00027671,2]
[313207499,1706949041166,-151.0,0.00027671,2]
[313207500,1706949041176,-500.0,0.00027671,2]
[313207501,1706949041185,-500.0,0.00027671,2]
[313207502,1706949041194,-500.0,0.00027671,2]
[313207503,1706949041204,-500.0,0.00027671,2]
[313207504,1706949041215,-151.0,0.00027671,2]
[313207505,1706949041232,-301.93124772,0.00027671,2]
[313207506,1706949041244,-500.0,0.00027671,2]
[313207507,1706949041254,-500.0,0.00027671,2]
[313207508,1706949041264,-1386.37,0.00027671,2]
[313207510,1706949041274,-1319.28,0.00027671,2]
[313207512,1706949041284,-500.0,0.00027671,2]
[313207514,1706949041295,-500.0,0.00027671,2]
[313207516,1706949041304,-512.4280412,0.00027671,2]
[313207519,1706949041315,-500.0,0.00027671,2]
[313207521,1706949041325,-500.0,0.00027671,2]
[313207523,1706949041335,-1904.9,0.00027671,2]
[313207525,1706949041344,-500.0,0.00027671,2]
[313207527,1706949041354,-500.0,0.00027671,2]
[313207529,1706949041363,-500.0,0.00027671,2]
[313207531,1706949041372,-500.49854135,0.00027671,2]
[313207533,1706949041382,-500.0,0.00027671,2]
[313207535,1706949041393,-500.0,0.00027671,2]
[313207537,1706949041403,-500.0,0.00027671,2]
[313207539,1706949041413,-500.0,0.00027671,2]
[313207541,1706949041422,-500.0,0.00027671,2]
[313207543,1706949041432,-785.79,0.00027671,2]
[313207545,1706949041441,-501.71,0.00027671,2]
[313207547,1706949041450,-758.7,0.00027671,2]
[313207549,1706949041460,-3457.36,0.00027671,2]
[313207551,1706949041469,-153.0,0.00027671,2]
[313207553,1706949041478,-199.7424242,0.00027671,2]
[313207555,1706949041488,-153.0,0.00027671,2]
[313207557,1706949041497,-153.0,0.00027671,2]
[313207559,1706949041506,-3000.0,0.000277,4]
[313207561,1706949041515,-578.0,0.000277,2]
[313207563,1706949041525,-693.32314678,0.00027715,2]
[313207565,1706949041534,-2000.0,0.000279,2]
[313207567,1706949041544,-437.02503165,0.000279,2]
[313207569,1706949041553,-2000.0,0.0002791,2]
[313207571,1706949041562,-2000.0,0.0002792,2]
[313207573,1706949041571,-2875.864551,0.0002793,2]
[313207575,1706949041582,-151.0,0.0002793,2]
[313207577,1706949041591,-500.0,0.00027945,2]
[313207579,1706949041600,-500.0,0.00027945,2]
[313207581,1706949041610,-500.0,0.00027945,2]
[313207583,1706949041619,-500.0,0.00027945,2]
[313207585,1706949041629,-500.0,0.00027945,2]
[313207587,1706949041639,-432.16430821,0.00027945,2]
[313207589,1706949041648,-500.0,0.00027945,2]
[313207591,1706949041658,-500.0,0.00027945,2]
[313207593,1706949041667,-500.0,0.00027945,2]
[313207595,1706949041677,-500.0,0.00027945,2]
[313207597,1706949041686,-500.0,0.00027945,2]
[313207599,1706949041695,-500.0,0.00027945,2]
[313207601,1706949041706,-500.0,0.00027945,2]
[313207603,1706949041715,-500.0,0.00027945,2]
[313207605,1706949041725,-500.0,0.00027945,2]
[313207607,1706949041734,-151.001804,0.00027945,2]
[313207609,1706949041744,-151.0,0.00027945,2]
[313207611,1706949041754,-500.0,0.00027945,2]
[313207613,1706949041763,-500.0,0.00027945,2]
[313207615,1706949041772,-151.0,0.00027945,2]
[313207617,1706949041782,-500.0,0.00027945,2]
[313207619,1706949041792,-500.0,0.00027945,2]
[313207622,1706949041802,-500.0,0.00027945,2]
[313207624,1706949041811,-500.0,0.00027945,2]
[313207626,1706949041820,-500.0,0.00027945,2]
[313207628,1706949041829,-500.0,0.00027945,2]
[313207630,1706949041838,-500.0,0.00027945,2]
[313207632,1706949041847,-500.0,0.00027945,2]
[313207634,1706949041856,-500.0,0.00027945,2]
[313207635,1706949041866,-500.0,0.00027945,2]
[313207638,1706949041875,-500.0,0.00027945,2]
[313207639,1706949041887,-500.0,0.00027945,2]
[313207641,1706949041898,-500.0,0.00027945,2]
[313207644,1706949041908,-617.54,0.00027945,2]
[313207645,1706949041917,-151.0,0.00027945,2]
[313207647,1706949041926,-500.0,0.00027945,2]
[313207649,1706949041935,-500.0,0.00027945,2]
[313207651,1706949041944,-500.0,0.00027945,2]
[313207653,1706949041954,-500.0,0.00027945,2]
[313207655,1706949041964,-151.0,0.00027945,2]
[313207657,1706949041974,-500.0,0.00027945,2]
[313207659,1706949041982,-500.0,0.00027945,2]
[313207660,1706949041992,-1386.37,0.00027945,2]
[313207662,1706949042002,-1319.28,0.00027945,2]
[313207663,1706949042011,-500.0,0.00027945,2]
[313207665,1706949042021,-500.0,0.00027945,2]
[313207666,1706949042030,-500.0,0.00027945,2]
[313207668,1706949042039,-500.0,0.00027945,2]
[313207670,1706949042049,-1904.9,0.00027945,2]
[313207671,1706949042059,-637.88884278,0.00027945,2]
[313207674,1706949042068,-500.0,0.00027945,2]
[313207675,1706949042078,-500.0,0.00027945,2]
[313207677,1706949042087,-500.0,0.00027945,2]
[313207679,1706949042097,-500.0,0.00027945,2]
[313207681,1706949042106,-500.0,0.00027945,2]
[313207683,1706949042116,-500.0,0.00027945,2]
[313207685,1706949042126,-500.0,0.00027945,2]
[313207686,1706949042135,-785.79,0.00027945,2]
[313207687,1706949042144,-501.71,0.00027945,2]
[313207688,1706949042153,-758.7,0.00027945,2]
[313207689,1706949042162,-3457.36,0.00027945,2]
[313207690,1706949042173,-1198.88608511,0.00027998,2]
[313207691,1706949042182,-230.88142086,0.00027998,2]
[313207692,1706949042192,-156.8872007,0.00027998,2]
[313207693,1706949042201,-155.72853088,0.00027998,2]
[313207694,1706949042210,-156.25070942,0.00027998,2]
[313207695,1706949042220,-332.68324877,0.00027998,2]
[313207696,1706949042230,-6799.23859091,0.00027998,2]
[313207697,1706949042239,-331.8109321,0.00027998,2]
[313207698,1706949042249,-155.79983419,0.00027998,2]
[313207699,1706949042258,-1249.89896506,0.00027998,2]
[313207700,1706949042268,-155.69605993,0.00027998,2]
[313207701,1706949042277,-175.056674,0.00027998,2]
[313207702,1706949042288,-2293.59373872,0.00027998,2]
[313207703,1706949042297,-591.99312524,0.00027998,2]
[313207704,1706949042308,-848.00898149,0.00027998,2]
[313207705,1706949042318,-4318.96555713,0.00027999,2]
[313207706,1706949042327,-155.50054411,0.00027999,2]
[313207707,1706949042336,-637.36337543,0.00027999,2]
[313207708,1706949042345,-299.32687714,0.00027999,2]